bitfinex/quotes_BTCUSD_20230405
["timestamp","ask_amount","ask_price","bid_price","bid_amount"]
[1680682392378,0.058245,28473.0,28472.0,0.26233221]
[1680682392591,0.005268,28473.0,28472.0,0.26227221]
[1680682392806,0.26376476,28474.0,28472.0,0.26166905]
[1680682393016,0.26476476,28474.0,28472.0,0.26266905]
[1680682393458,0.26376476,28474.0,28472.0,0.26166905]
[1680682393678,0.001,28473.0,28472.0,0.26241097]
[1680682393949,0.26376476,28474.0,28472.0,0.26141097]
[1680682394163,0.26476476,28474.0,28472.0,0.001]
[1680682394377,0.26476476,28474.0,28471.0,0.0213]
[1680682394378,0.3374886,28473.0,28471.0,0.0213]
[1680682394609,0.015804,28472.0,28471.0,0.0213]
[1680682395038,0.069171,28472.0,28471.0,0.0213]
[1680682395489,0.058635,28472.0,28471.0,0.0213]
[1680682395701,0.005268,28472.0,28471.0,0.0213]
[1680682396135,0.2856366,28473.0,28471.0,0.42135331]
[1680682396339,0.054783,28472.0,28471.0,0.42235331]
[1680682396569,0.001,28472.0,28471.0,0.42235331]
[1680682397867,0.001,28472.0,28471.0,0.0223]
[1680682398304,0.001,28472.0,28471.0,0.4067164]
[1680682398515,0.001,28472.0,28471.0,0.0223]
[1680682398982,0.26918843,28475.0,28471.0,0.38227847]
[1680682399200,0.001,28472.0,28471.0,0.38327847]
[1680682399844,0.00051,28474.0,28471.0,0.38227847]
[1680682400054,0.001,28472.0,28471.0,0.38327847]
[1680682400309,0.36107576,28475.0,28471.0,0.38227847]
[1680682400524,0.001,28472.0,28471.0,0.38327847]
[1680682400734,0.001,28472.0,28471.0,0.032836]
[1680682401192,0.001,28472.0,28471.0,0.47402495]
[1680682401410,0.001,28472.0,28471.0,0.3757974]
[1680682401621,0.001,28472.0,28471.0,0.032836]
[1680682401844,0.14289681,28472.0,28471.0,0.0223]
[1680682402060,0.73294105,28472.0,28471.0,0.0223]
[1680682402296,0.59104424,28472.0,28471.0,0.0223]
[1680682402517,0.89155424,28472.0,28471.0,0.0223]
[1680682402734,0.87726456,28472.0,28471.0,0.0213]
[1680682402999,1.20782934,28472.0,28471.0,0.0213]
[1680682403215,1.23431934,28472.0,28471.0,0.00156603]
[1680682403434,1.20782934,28472.0,28471.0,0.00156603]
[1680682403655,1.23482934,28472.0,28471.0,0.00156603]
[1680682404752,1.02826806,28472.0,28471.0,0.00156603]
[1680682404971,0.384654,28472.0,28471.0,0.00156603]
[1680682405190,0.084654,28472.0,28471.0,0.00156603]
[1680682409381,0.084144,28472.0,28471.0,0.00156603]
[1680682409799,0.084654,28472.0,28471.0,0.00156603]
[1680682410666,0.084654,28472.0,28471.0,0.00256603]
[1680682411522,0.084144,28472.0,28471.0,0.00256603]
[1680682413529,0.084654,28472.0,28471.0,0.00256603]
[1680682421579,0.084654,28472.0,28471.0,0.26519584]
[1680682421999,0.084654,28472.0,28471.0,0.00256603]
[1680682422208,0.084144,28472.0,28471.0,0.00256603]
[1680682422422,0.084654,28472.0,28471.0,0.00256603]
[1680682424601,0.084654,28472.0,28471.0,0.37640988]
[1680682424808,0.08405626,28472.0,28471.0,0.37750988]
[1680682425280,0.08405626,28472.0,28471.0,0.37756988]
[1680682426146,0.08405626,28472.0,28471.0,0.37750988]
[1680682426413,0.07878826,28472.0,28471.0,0.37750988]
[1680682426636,0.08405626,28472.0,28471.0,0.37750988]
[1680682426863,0.08405626,28472.0,28471.0,0.37756988]
[1680682427077,0.08405626,28472.0,28471.0,0.37750988]
[1680682427288,0.08405626,28472.0,28471.0,0.00266603]
[1680682427723,0.43559388,28472.0,28471.0,0.00266603]
[1680682427945,0.43559388,28472.0,28471.0,0.00256603]
[1680682430062,0.43559388,28472.0,28471.0,0.00156603]
[1680682430304,0.51779388,28472.0,28471.0,0.00156603]
[1680682432137,1.15843696,28460.0,28406.0,0.6999]
[1680682432305,1.30033377,28460.0,28459.0,1.13649056]
[1680682432754,1.30033377,28460.0,28459.0,0.84487306]
[1680682432975,1.15843696,28460.0,28459.0,0.84487306]
[1680682433429,1.15843696,28460.0,28459.0,1.24317143]
[1680682433622,1.16143696,28460.0,28459.0,1.24417143]
[1680682433844,1.16143696,28460.0,28459.0,0.94587306]
[1680682434280,1.16143696,28460.0,28459.0,1.19628375]
[1680682434501,1.16143696,28460.0,28459.0,0.94587306]
[1680682434957,1.7401596,28460.0,28459.0,0.0773395]
[1680682435191,1.7923586,28460.0,28459.0,0.0233]
[1680682435427,1.65046179,28460.0,28459.0,0.0233]
[1680682435674,1.65082179,28460.0,28459.0,0.0233]
[1680682435908,1.21078596,28460.0,28452.0,1.06116366]
[1680682436144,0.0822,28457.0,28454.0,0.00098543]
[1680682436376,0.14240681,28457.0,28452.0,0.12453703]
[1680682436608,0.14189681,28456.0,28451.0,0.2646576]
[1680682436841,0.14240681,28456.0,28451.0,0.2646576]
[1680682437069,0.14240681,28456.0,28452.0,0.09751569]
[1680682437302,0.49660737,28455.0,28451.0,0.0213]
[1680682437524,0.00051,28455.0,28452.0,0.08682589]
[1680682437764,0.00051,28456.0,28452.0,0.08682589]
[1680682437982,0.00051,28456.0,28451.0,0.0213]
[1680682438197,0.14189681,28456.0,28451.0,0.0213]
[1680682438412,0.001,28455.0,28451.0,0.0213]
[1680682438857,0.36343602,28454.0,28451.0,0.0213]
[1680682439125,0.36394602,28454.0,28451.0,0.0213]
[1680682439598,0.00051,28454.0,28452.0,0.0986722]
[1680682439812,0.41765343,28455.0,28452.0,0.0986722]
[1680682440035,0.38770355,28454.0,28451.0,0.0213]
[1680682440250,0.38821355,28454.0,28451.0,0.0213]
[1680682440745,0.38821355,28454.0,28452.0,0.13587613]
[1680682441178,0.38821355,28454.0,28451.0,0.0213]
[1680682441620,0.00251,28454.0,28452.0,0.17219583]
[1680682441814,0.00051,28454.0,28452.0,0.17219583]
[1680682442045,0.00251,28454.0,28452.0,0.17219583]
[1680682442261,0.00251,28454.0,28451.0,0.26682158]
[1680682442485,0.00051,28454.0,28451.0,0.26682158]
[1680682442704,0.00151,28454.0,28451.0,0.26682158]
[1680682443140,0.00151,28454.0,28452.0,0.11118239]
[1680682443365,0.00051,28454.0,28452.0,0.11118239]
[1680682443583,0.00251,28454.0,28451.0,0.0213]
[1680682443792,0.37373034,28453.0,28451.0,0.0213]
[1680682444041,0.37424034,28453.0,28451.0,0.0213]
[1680682445703,0.37624034,28453.0,28451.0,0.0213]
[1680682447639,0.00251,28453.0,28451.0,0.2817078]
[1680682448205,0.00251,28453.0,28451.0,0.0213]
[1680682449013,0.35909205,28452.0,28451.0,0.0213]
[1680682449272,0.35960205,28452.0,28451.0,0.0213]
[1680682450388,0.36060205,28452.0,28451.0,0.0213]
[1680682451783,0.36060205,28452.0,28451.0,0.0232]
[1680682452347,0.35960205,28452.0,28451.0,0.0232]
[1680682452824,1.15843696,28460.0,28452.0,0.00051]
[1680682452827,0.0003,28454.0,28452.0,0.00051]
[1680682453114,1.15843696,28460.0,28453.0,0.55044056]
[1680682453379,1.59647908,28460.0,28457.0,0.0822]
[1680682453925,1.59647908,28460.0,28457.0,0.092742]
[1680682454219,1.16043696,28460.0,28457.0,0.092742]
[1680682454472,1.15843696,28460.0,28457.0,0.35071636]
[1680682454762,0.33412584,28459.0,28457.0,0.36171636]
[1680682455060,0.33442584,28459.0,28457.0,0.103742]
[1680682455331,0.33412584,28459.0,28458.0,0.0019]
[1680682456339,0.33612584,28459.0,28458.0,0.0019]
[1680682456657,1.15873696,28460.0,28458.0,0.15689098]
[1680682456924,0.002,28459.0,28458.0,0.16789098]
[1680682457693,1.15873696,28460.0,28458.0,0.59380154]
[1680682457920,1.15873696,28460.0,28458.0,0.60480154]
[1680682458114,1.51862214,28460.0,28458.0,0.46035156]
[1680682458115,1.15873696,28460.0,28459.0,0.43621056]
[1680682458700,1.15873696,28460.0,28458.0,0.00012]
[1680682458701,0.32730469,28459.0,28458.0,0.00012]
[1680682458957,0.32930469,28459.0,28458.0,0.021541]
[1680682459229,0.32930469,28459.0,28458.0,0.010541]
[1680682460079,0.32930469,28459.0,28458.0,0.011]
[1680682465068,0.002,28459.0,28458.0,0.011]
[1680682465337,0.45377316,28459.0,28458.0,0.011]
[1680682465564,0.40307195,28459.0,28458.0,0.011]
[1680682465786,0.35477012,28459.0,28458.0,0.011]
[1680682466246,1.49279113,28460.0,28456.0,0.24711537]
[1680682466471,1.49279113,28460.0,28457.0,0.010542]
[1680682466698,0.003,28459.0,28457.0,0.010542]
[1680682467571,1.49279113,28460.0,28457.0,0.010542]
[1680682467807,0.002,28459.0,28458.0,0.01]
[1680682468016,0.35355123,28459.0,28457.0,0.010542]
[1680682468241,0.35585123,28459.0,28457.0,0.020542]
[1680682468674,0.35385123,28459.0,28457.0,0.010542]
[1680682468897,0.35585123,28459.0,28458.0,0.01]
[1680682469167,0.35385123,28459.0,28457.0,0.010542]
[1680682469832,0.0003,28459.0,28457.0,0.36525256]
[1680682470057,1.15873696,28460.0,28458.0,0.11726213]
[1680682470271,1.15873696,28460.0,28459.0,0.010541]
[1680682470934,1.15864696,28460.0,28458.0,6e-05]
[1680682471161,1.58019013,28460.0,28459.0,0.010541]
[1680682471392,1.58219013,28460.0,28459.0,0.020541]
[1680682471617,1.58219013,28460.0,28459.0,0.37525156]
[1680682472059,1.16073696,28460.0,28459.0,0.37525156]
[1680682472752,1.57706034,28460.0,28459.0,0.37525156]
[1680682472974,1.16073696,28460.0,28459.0,0.36471056]
[1680682473158,1.53320993,28460.0,28459.0,0.01]
[1680682479631,1.53290993,28460.0,28459.0,0.01]
[1680682484313,1.55794589,28460.0,28459.0,0.01]
[1680682485219,1.55794589,28460.0,28459.0,0.00989869]
[1680682485659,1.55594589,28460.0,28457.0,0.14492798]
[1680682485888,1.55694589,28460.0,28459.0,0.009]
[1680682486099,1.55694589,28460.0,28457.0,0.14492798]
[1680682486100,1.55594589,28460.0,28457.0,0.14492798]
[1680682486551,1.56594589,28460.0,28459.0,0.001]
[1680682486797,1.55594589,28460.0,28457.0,0.14492798]
[1680682487013,1.55694589,28460.0,28457.0,0.15392798]
[1680682487274,1.55594589,28460.0,28457.0,0.14492798]
[1680682487663,1.55594589,28460.0,28457.0,0.010542]
[1680682487873,1.55894589,28460.0,28457.0,0.010542]
[1680682488756,1.55594589,28460.0,28456.0,0.010542]
[1680682488981,0.39165554,28459.0,28456.0,0.010542]
[1680682489198,0.39165554,28459.0,28457.0,0.009]
[1680682490052,0.39165554,28459.0,28456.0,0.01043989]
[1680682490267,0.39295554,28459.0,28457.0,0.06387285]
[1680682490488,0.39295554,28459.0,28457.0,0.009]
[1680682491536,0.41703042,28458.0,28457.0,0.009]
[1680682491752,0.41733042,28458.0,28457.0,0.009]
[1680682491969,0.41733042,28458.0,28457.0,0.06387281]
[1680682492188,0.41609609,28458.0,28457.0,0.009]
[1680682492434,0.41609609,28458.0,28457.0,0.06387281]
[1680682492884,0.41609609,28458.0,28457.0,0.05487281]
[1680682493329,0.41709609,28458.0,28457.0,0.06387281]
[1680682493991,0.41709609,28458.0,28457.0,0.07441481]
[1680682495553,0.41709609,28458.0,28457.0,0.009]
[1680682496870,0.41709609,28458.0,28457.0,0.019542]
[1680682497801,0.41709609,28458.0,28457.0,0.009]
[1680682499375,0.41709609,28458.0,28457.0,0.019542]
[1680682499587,0.001,28458.0,28457.0,0.019542]
[1680682500475,0.41170246,28458.0,28457.0,0.019542]
[1680682505383,0.41170246,28458.0,28457.0,0.009]
[1680682506280,0.001,28458.0,28457.0,0.12230973]
[1680682506569,1.15843696,28460.0,28458.0,0.4696]
[1680682506786,1.08182778,28460.0,28459.0,1.18869856]
[1680682507005,1.08182778,28460.0,28459.0,1.41940244]
[1680682507444,1.08182778,28460.0,28459.0,1.36750029]
[1680682507927,1.08382778,28460.0,28459.0,1.38650029]
[1680682508161,1.08182778,28460.0,28459.0,1.36750029]
[1680682508380,1.08382778,28460.0,28459.0,1.59688278]
[1680682508608,1.08382778,28460.0,28459.0,1.38650029]
[1680682508830,1.08382778,28460.0,28459.0,1.59688302]
[1680682509049,1.08382778,28460.0,28459.0,1.59688316]
[1680682509270,1.08382778,28460.0,28459.0,1.26274244]
[1680682509496,1.08382778,28460.0,28459.0,1.4220356]
[1680682512047,1.08382778,28460.0,28459.0,1.63223448]
[1680682513854,1.08382778,28460.0,28459.0,1.62373448]
[1680682514083,1.08382778,28460.0,28459.0,1.58166138]
[1680682516599,1.08382778,28460.0,28459.0,1.05276822]
[1680682516841,1.08382778,28460.0,28459.0,0.83159264]
[1680682516842,1.50700135,28460.0,28459.0,0.83159264]
[1680682517077,1.08382778,28460.0,28459.0,0.83159264]
[1680682517794,1.08382778,28460.0,28459.0,0.81259264]
[1680682517795,1.08182778,28460.0,28459.0,0.81259264]
[1680682518055,1.08382778,28460.0,28459.0,0.9450344]
[1680682520123,1.08382778,28460.0,28459.0,0.81895532]
[1680682520797,1.08382778,28460.0,28459.0,0.9450344]
[1680682521016,1.08382778,28460.0,28459.0,0.81895532]
[1680682522804,1.08382778,28460.0,28459.0,1.0271344]
[1680682524835,1.08382778,28460.0,28459.0,1.3967344]
[1680682525056,1.01519955,28460.0,28459.0,3.20731738]
[1680682525277,1.01519955,28460.0,28459.0,3.65452613]
[1680682525508,1.01519955,28460.0,28459.0,3.80001138]
[1680682525723,1.01519955,28460.0,28459.0,3.40001138]
[1680682525942,1.01319955,28460.0,28459.0,3.23752613]
[1680682526161,1.01319955,28460.0,28459.0,2.88722613]
[1680682526383,1.01319955,28460.0,28459.0,2.91522613]
[1680682526602,1.01319955,28460.0,28459.0,3.00282519]
[1680682526819,1.01319955,28460.0,28459.0,3.07289829]
[1680682528680,1.01319955,28460.0,28459.0,3.22334324]
[1680682528894,1.01349955,28460.0,28459.0,3.22304865]
[1680682529136,1.01349955,28460.0,28459.0,2.55264977]
[1680682529823,1.01349955,28460.0,28459.0,2.59487896]
[1680682530056,1.01349955,28460.0,28459.0,3.2573799]
[1680682530275,1.01349955,28460.0,28459.0,3.41457181]
[1680682530500,1.01349955,28460.0,28459.0,3.6076799]
[1680682533558,1.01349955,28460.0,28459.0,3.91823364]
[1680682535160,1.15539636,28460.0,28459.0,2.29803427]
[1680682535414,1.45909307,28460.0,28459.0,0.44370305]
[1680682535653,1.45909307,28460.0,28459.0,0.038541]
[1680682535887,1.45909307,28460.0,28459.0,0.39325156]
[1680682536186,1.45909307,28460.0,28459.0,0.44811552]
[1680682536342,1.45909307,28460.0,28459.0,0.42011552]
[1680682536797,1.45909307,28460.0,28459.0,0.44811552]
[1680682537033,1.45909307,28460.0,28459.0,0.42011552]
[1680682537227,1.45909307,28460.0,28459.0,0.74811552]
[1680682538143,1.45909307,28460.0,28459.0,0.19079652]
[1680682538387,0.3696,28458.0,28453.0,0.25146999]
[1680682538617,0.3696,28458.0,28450.0,0.01494329]
[1680682538618,0.35471056,28454.0,28450.0,0.01494329]
[1680682538860,0.164,28451.0,28448.0,0.0213]
[1680682539101,0.0822,28449.0,28448.0,0.0213]
[1680682539329,0.63076637,28449.0,28448.0,0.0213]
[1680682539794,0.48886956,28449.0,28448.0,0.0213]
[1680682540278,0.49384156,28449.0,28446.0,0.00263654]
[1680682540516,0.0814,28447.0,28446.0,0.00263654]
[1680682540745,0.48718556,28447.0,28446.0,0.00263654]
[1680682542585,0.51418556,28447.0,28446.0,0.00363654]
[1680682544674,0.51945756,28447.0,28446.0,0.00363654]
[1680682544911,0.51418556,28447.0,28446.0,0.00363654]
[1680682551651,0.46311056,28447.0,28446.0,0.00363654]
[1680682551881,0.51685856,28447.0,28446.0,0.00363654]
[1680682556264,0.51715856,28447.0,28442.0,0.010547]
[1680682556493,0.0822,28444.0,28442.0,0.47401031]
[1680682556739,0.0003,28445.0,28443.0,0.110547]
[1680682556977,0.0822,28446.0,28443.0,0.110547]
[1680682556978,0.0822,28446.0,28443.0,0.46525756]
[1680682557195,0.027,28447.0,28444.0,0.65471056]
[1680682557415,0.0003,28451.0,28445.0,0.534125]
[1680682557635,0.12974152,28453.0,28447.0,0.1]
[1680682557636,0.12733437,28452.0,28447.0,0.1]
[1680682557862,0.0003,28454.0,28451.0,0.54533]
[1680682558151,0.12518983,28457.0,28453.0,0.3696]
[1680682558376,0.12518983,28457.0,28454.0,0.68633956]
[1680682558593,0.12518983,28457.0,28454.0,0.38651956]
[1680682559044,0.11225424,28456.0,28454.0,0.46871956]
[1680682559264,0.11225424,28456.0,28454.0,0.38651956]
[1680682560791,0.11525424,28456.0,28454.0,0.39451956]
[1680682561018,0.11225424,28456.0,28454.0,0.38651956]
[1680682561462,0.11525424,28456.0,28454.0,0.39451956]
[1680682561684,0.11225424,28456.0,28454.0,0.38651956]
[1680682561935,0.11525424,28456.0,28454.0,0.39451956]
[1680682562164,0.11225424,28456.0,28454.0,0.38651956]
[1680682563058,0.11525424,28456.0,28454.0,0.39451956]
[1680682563271,0.11225424,28456.0,28454.0,0.38651956]
[1680682563489,0.11225424,28456.0,28454.0,0.39451956]
[1680682563490,0.11525424,28456.0,28454.0,0.39451956]
[1680682563702,0.11225424,28456.0,28454.0,0.38651956]
[1680682563933,0.11525424,28456.0,28454.0,0.39451956]
[1680682564332,0.11525424,28456.0,28454.0,0.38651956]
[1680682564333,0.11225424,28456.0,28454.0,0.38651956]
[1680682564554,0.11525424,28456.0,28454.0,0.39451956]
[1680682564778,0.11225424,28456.0,28454.0,0.38651956]
[1680682565002,0.003,28456.0,28454.0,0.39451956]
[1680682566170,0.003,28456.0,28454.0,0.38651956]
[1680682566395,0.13349072,28457.0,28454.0,0.38651956]
[1680682566622,0.13349072,28457.0,28454.0,0.39451956]
[1680682566623,0.003,28456.0,28454.0,0.39451956]
[1680682566861,0.13349072,28457.0,28454.0,0.38651956]
[1680682567085,0.003,28456.0,28454.0,0.39439956]
[1680682567319,0.13349072,28457.0,28454.0,0.71968788]
[1680682567515,0.13349072,28457.0,28455.0,0.38284334]
[1680682567656,0.00545982,28457.0,28456.0,0.010542]
[1680682567893,0.00245982,28457.0,28456.0,0.36525256]
[1680682568094,0.00245982,28457.0,28456.0,0.66543256]
[1680682568525,0.00245982,28457.0,28456.0,0.76543256]
[1680682569101,0.00545982,28457.0,28456.0,0.77312286]
[1680682569302,0.00245982,28457.0,28456.0,0.76512286]
[1680682569525,0.00545982,28457.0,28456.0,0.77312286]
[1680682569926,0.00545982,28457.0,28456.0,1.15360335]
[1680682570507,0.00545982,28457.0,28456.0,0.3184123]
[1680682570729,0.1368603,28457.0,28456.0,0.3184123]
[1680682570955,0.1368603,28457.0,28456.0,0.0184123]
[1680682571824,0.1371603,28457.0,28456.0,0.0184123]
[1680682572033,0.00045982,28457.0,28456.0,0.0184123]
[1680682572552,0.00045982,28457.0,28455.0,0.29969975]
[1680682572819,0.28790853,28457.0,28456.0,0.010542]
[1680682573077,0.28820853,28457.0,28456.0,0.010542]
[1680682573458,0.28774871,28457.0,28456.0,0.010542]
[1680682573728,0.28774871,28457.0,28450.0,0.21064787]
[1680682573729,0.37917849,28456.0,28450.0,0.21064787]
[1680682573977,0.22409681,28455.0,28451.0,0.010544]
[1680682574204,0.0003,28455.0,28451.0,0.31437673]
[1680682574423,0.0003,28455.0,28452.0,0.1]
[1680682574700,0.0003,28455.0,28453.0,0.010543]
[1680682575152,0.3678016,28455.0,28453.0,0.010543]
[1680682575389,0.42154225,28454.0,28453.0,0.010543]
[1680682575614,0.42184225,28454.0,28453.0,0.010543]
[1680682576731,0.42384225,28454.0,28453.0,0.010543]
[1680682577398,0.0023,28454.0,28453.0,0.110543]
[1680682577638,0.0822,28458.0,28453.0,0.110543]
[1680682577639,0.45020497,28456.0,28453.0,0.010543]
[1680682577868,0.002,28454.0,28453.0,0.28545005]
[1680682578082,0.0003,28454.0,28453.0,0.28545005]
[1680682578305,0.0023,28454.0,28453.0,0.28545005]
[1680682581668,0.002,28454.0,28453.0,0.28545005]
[1680682582775,0.0023,28454.0,28453.0,0.28545005]
[1680682589894,0.0023,28454.0,28453.0,0.010543]
[1680682590114,0.36957107,28454.0,28453.0,0.010543]
[1680682590351,0.0023,28454.0,28453.0,0.010543]
[1680682590564,0.33309103,28456.0,28453.0,0.010543]
[1680682590778,0.002,28454.0,28453.0,0.010543]
[1680682591677,0.0003,28455.0,28453.0,0.010543]
[1680682592560,0.0003,28455.0,28453.0,0.32510227]
[1680682593017,0.0003,28455.0,28453.0,0.36727627]
[1680682593234,0.0822,28458.0,28453.0,0.36727627]
[1680682593235,0.002,28454.0,28453.0,0.36727627]
[1680682593450,0.0003,28456.0,28454.0,0.1]
[1680682593675,0.0003,28456.0,28455.0,0.031627]
[1680682593892,0.0003,28456.0,28455.0,0.38652957]
[1680682594813,0.0013,28456.0,28455.0,0.38652957]
[1680682595033,0.0003,28456.0,28455.0,0.38652957]
[1680682595264,0.0013,28456.0,28455.0,0.38652957]
[1680682595683,0.0013,28456.0,28455.0,0.031627]
[1680682596419,0.0013,28456.0,28454.0,0.27393151]
[1680682596643,0.0013,28456.0,28455.0,0.010542]
[1680682597369,0.44737152,28456.0,28455.0,0.010542]
[1680682597797,0.44737152,28456.0,28452.0,0.010543]
[1680682598055,0.58926833,28456.0,28452.0,0.010543]
[1680682598275,0.44707152,28456.0,28452.0,0.43303489]
[1680682598719,0.44819576,28455.0,28452.0,0.43303489]
[1680682599381,0.44841222,28455.0,28452.0,0.43273601]
[1680682599823,0.45041222,28455.0,28452.0,0.43273601]
[1680682600047,0.00021646,28455.0,28453.0,0.19525483]
[1680682600275,0.002,28455.0,28454.0,0.031629]
[1680682600554,0.36265335,28456.0,28454.0,0.031629]
[1680682600776,0.001,28455.0,28454.0,0.031629]
[1680682600972,0.36265335,28456.0,28454.0,0.031629]
[1680682601448,0.36265335,28456.0,28454.0,0.36244226]
[1680682601691,0.00021646,28456.0,28454.0,0.36244226]
[1680682601927,0.003,28455.0,28454.0,0.36244226]
[1680682602141,0.00021646,28456.0,28454.0,0.36244226]
[1680682602367,0.00321646,28456.0,28454.0,0.36244226]
[1680682602586,0.00021646,28456.0,28454.0,0.36244226]
[1680682602809,0.003,28455.0,28454.0,0.36236442]
[1680682603300,0.001,28456.0,28454.0,0.36236442]
[1680682603734,0.34217212,28457.0,28454.0,0.36236442]
[1680682603951,0.001,28455.0,28454.0,0.03155116]
[1680682604842,0.34217212,28457.0,28454.0,0.13155116]
[1680682605054,0.001,28456.0,28454.0,0.13155116]
[1680682605276,0.34217212,28457.0,28454.0,0.03155116]
[1680682605509,0.001,28455.0,28454.0,0.03155116]
[1680682605738,0.34217212,28457.0,28454.0,0.03155116]
[1680682605960,0.001,28456.0,28455.0,0.18381155]
[1680682606180,0.34217212,28457.0,28455.0,0.19435355]
[1680682607647,0.001,28456.0,28455.0,0.19435355]
[1680682607878,0.34217212,28457.0,28455.0,0.19435355]
[1680682608099,0.34317212,28457.0,28455.0,0.19435355]
[1680682608540,0.34217212,28457.0,28455.0,0.010542]
[1680682608756,0.001,28456.0,28455.0,0.010542]
[1680682608966,0.34217212,28457.0,28455.0,0.010542]
[1680682609182,0.34317212,28457.0,28455.0,0.010542]
[1680682609404,0.34217212,28457.0,28455.0,0.010542]
[1680682609642,0.001,28456.0,28455.0,0.010542]
[1680682610305,0.42830702,28456.0,28455.0,0.010542]
[1680682610532,0.42752348,28456.0,28455.0,0.010542]
[1680682611053,0.42730702,28456.0,28455.0,0.00942899]
[1680682611281,0.42830702,28456.0,28455.0,0.00942899]
[1680682617555,0.42830702,28456.0,28454.0,0.010543]
[1680682619139,0.42730702,28456.0,28454.0,0.010543]
[1680682619378,0.42830702,28456.0,28454.0,0.010543]
[1680682620034,0.001,28456.0,28455.0,0.72431056]
[1680682620249,0.001,28456.0,28455.0,1.50876134]
[1680682620466,0.001,28456.0,28455.0,2.60888134]
[1680682620682,0.001,28456.0,28455.0,2.60894134]
[1680682621148,1.39662607,28460.0,28455.0,2.60894134]
[1680682621375,1.39662607,28460.0,28457.0,0.16845929]
[1680682621606,1.39662607,28460.0,28458.0,0.52850156]
[1680682621828,1.01319955,28460.0,28459.0,0.3]
[1680682621944,1.01319955,28460.0,28459.0,0.66543156]
[1680682622391,1.01419955,28460.0,28459.0,0.66543156]
[1680682622838,1.01319955,28460.0,28459.0,0.88600678]
[1680682623057,1.01319955,28460.0,28459.0,0.88800678]
[1680682625033,1.01319955,28460.0,28459.0,0.58800678]
[1680682627510,1.01319955,28460.0,28459.0,0.36743156]
[1680682628632,1.01319955,28460.0,28459.0,0.012721]
[1680682628842,1.46537929,28460.0,28459.0,0.002]
[1680682629089,1.46537929,28460.0,28459.0,0.012541]
[1680682632090,1.4653176,28460.0,28459.0,0.012541]
[1680682640129,1.46544406,28460.0,28459.0,0.012541]
[1680682640367,1.4653176,28460.0,28459.0,0.012541]
[1680682643053,1.46553406,28460.0,28456.0,0.42639339]
[1680682643294,1.46553406,28460.0,28459.0,0.010541]
[1680682643513,1.01335432,28460.0,28459.0,0.010541]
[1680682644163,1.01535432,28460.0,28459.0,0.010541]
[1680682644375,1.01335432,28460.0,28459.0,0.010541]
[1680682644593,1.01335432,28460.0,28459.0,0.012541]
[1680682646771,1.40314308,28460.0,28459.0,0.012541]
[1680682646996,1.01335432,28460.0,28459.0,1.31496621]
[1680682647249,1.01335432,28460.0,28459.0,1.90308473]
[1680682647469,1.01335432,28460.0,28459.0,1.69251061]
[1680682647699,1.01335432,28460.0,28459.0,2.04429061]
[1680682647700,1.01313786,28460.0,28459.0,2.04429061]
[1680682647919,1.01313786,28460.0,28459.0,2.57061937]
[1680682648351,1.01313786,28460.0,28459.0,2.56861937]
[1680682648548,1.01513786,28460.0,28459.0,2.57661937]
[1680682648793,1.01313786,28460.0,28459.0,2.56861937]
[1680682649008,1.01613786,28460.0,28459.0,2.57661937]
[1680682649227,1.01613786,28460.0,28459.0,2.50261937]
[1680682649661,1.01613786,28460.0,28459.0,2.31915633]
[1680682649884,1.01313786,28460.0,28459.0,2.10087731]
[1680682650112,1.01613786,28460.0,28459.0,2.10887731]
[1680682650345,1.01613786,28460.0,28459.0,2.31915633]
[1680682650557,1.01613786,28460.0,28459.0,2.10887731]
[1680682652345,1.01613786,28460.0,28459.0,2.11677731]
[1680682652776,1.01613786,28460.0,28459.0,2.2428101]
[1680682653170,1.01613786,28460.0,28459.0,2.07467314]
[1680682655606,1.01613786,28460.0,28459.0,2.07467314]
[1680682656023,1.01613786,28460.0,28459.0,2.2428101]
[1680682656417,1.01613786,28460.0,28459.0,2.07467314]
[1680682657469,1.01613786,28460.0,28459.0,1.94864035]
[1680682657892,1.01613786,28460.0,28459.0,2.07467314]
[1680682659277,1.01613786,28460.0,28459.0,1.99297314]
[1680682661091,1.01613786,28460.0,28459.0,1.62337314]
[1680682661309,1.01613786,28460.0,28459.0,1.99297314]
[1680682661498,1.01613786,28460.0,28459.0,1.62337314]
[1680682662201,1.01613786,28460.0,28459.0,1.99297314]
[1680682662644,1.01613786,28460.0,28459.0,1.62337314]
[1680682663256,1.01613786,28460.0,28459.0,1.99297314]
[1680682663824,1.01613786,28460.0,28459.0,1.99291314]
[1680682664055,1.01604007,28460.0,28459.0,1.99291314]
[1680682664540,1.01604007,28460.0,28459.0,1.51789914]
[1680682665061,1.01604007,28460.0,28459.0,1.46303652]
[1680682665313,1.01604007,28460.0,28459.0,1.5178997]
[1680682665764,1.01604007,28460.0,28459.0,1.8873797]
[1680682666713,1.01604007,28460.0,28459.0,2.05551666]
[1680682668338,1.01604007,28460.0,28459.0,1.8873797]
[1680682669141,1.01604007,28460.0,28459.0,1.5177797]
[1680682669318,1.01625653,28460.0,28459.0,1.5177797]
[1680682669541,1.01604007,28460.0,28459.0,1.5177797]
[1680682670114,1.01604007,28460.0,28459.0,1.5092797]
[1680682671922,1.01625653,28460.0,28459.0,0.87019727]
[1680682675966,1.01625653,28460.0,28459.0,0.74416448]
[1680682676174,1.37066663,28460.0,28459.0,0.74416448]
[1680682676562,1.37066663,28460.0,28459.0,0.87019727]
[1680682677975,1.37066663,28460.0,28459.0,0.74416448]
[1680682678288,1.37066663,28460.0,28459.0,0.37891292]
[1680682678930,1.36766663,28460.0,28459.0,0.37091292]
[1680682679132,1.37066663,28460.0,28459.0,0.32304974]
[1680682679365,1.37066663,28460.0,28459.0,0.33359074]
[1680682679578,1.37066663,28460.0,28459.0,0.38845848]
[1680682679786,1.37066663,28460.0,28459.0,0.32304974]
[1680682680409,1.37066663,28460.0,28459.0,0.33359074]
[1680682681678,1.37066663,28460.0,28459.0,0.38845863]
[1680682684728,1.37037384,28460.0,28459.0,0.38857863]
[1680682685509,1.3705903,28460.0,28459.0,0.38845863]
[1680682685716,1.37037384,28460.0,28459.0,0.38857863]
[1680682687045,1.01596374,28460.0,28459.0,0.74328919]
[1680682687257,1.01596374,28460.0,28459.0,1.16779512]
[1680682687664,1.01596374,28460.0,28459.0,1.20989929]
[1680682688079,1.01596374,28460.0,28459.0,1.33608406]
[1680682688496,1.01596374,28460.0,28459.0,1.20989929]
[1680682689758,1.01596374,28460.0,28459.0,1.33611213]
[1680682689982,1.01596374,28460.0,28459.0,1.20989929]
[1680682690227,1.46489841,28460.0,28459.0,0.5147911]